fUST/lending_fUST_20241101
["ID","MTS","AMOUNT","RATE_DAILY","PERIOD"]
[341135642,1730452247551,-500.0,0.00035616,5]
[341135643,1730452247561,-174.67220758,0.00035616,5]
[341135644,1730452247570,-500.0,0.00035616,5]
[341135645,1730452247580,-513.24949988,0.00035616,5]
[341135646,1730452247590,-506.461106,0.00035616,5]
[341135647,1730452247599,-502.69543732,0.00035616,5]
[341135648,1730452247609,-509.6879341,0.00035616,5]
[341135649,1730452247619,-500.0,0.00035616,5]
[341135650,1730452247635,-500.0,0.00035616,5]
[341135651,1730452247647,-503.16068032,0.00035616,5]
[341135652,1730452247656,-500.0,0.00035616,5]
[341135653,1730452247666,-500.0,0.00035616,5]
[341135654,1730452247676,-500.0,0.00035616,5]
[341135655,1730452247686,-502.37217976,0.00035616,5]
[341135656,1730452247695,-568.04552787,0.00035616,5]
[341135657,1730452247706,-516.76517553,0.00035616,5]
[341135658,1730452247717,-500.0,0.00035616,5]
[341135659,1730452247726,-503.96919502,0.00035616,5]
[341135660,1730452247737,-500.0,0.00035616,5]
[341135661,1730452247747,-500.0,0.00035616,5]
[341135662,1730452247756,-500.0,0.00035616,5]
[341135663,1730452247765,-507.79167623,0.00035616,5]
[341135664,1730452247777,-500.0,0.00035616,5]
[341135665,1730452247788,-500.0,0.00035616,5]
[341135666,1730452247798,-513.5600455,0.00035616,5]
[341135667,1730452247808,-648.66994405,0.00035616,5]
[341135668,1730452247817,-504.07972228,0.00035616,5]
[341135669,1730452247827,-500.0,0.00035616,5]
[341135670,1730452247840,-500.0,0.00035616,5]
[341135671,1730452247850,-503.00093366,0.00035616,5]
[341135672,1730452247859,-505.57325686,0.00035616,5]
[341135673,1730452247870,-500.0,0.00035616,5]
[341135674,1730452247881,-500.0,0.00035616,5]
[341135675,1730452247891,-506.9964651,0.00035616,5]
[341135676,1730452247901,-275.56690252,0.00035616,5]
[341135677,1730452247911,-500.0,0.00035616,5]
[341135678,1730452247920,-519.39473326,0.00035616,5]
[341135679,1730452247930,-500.0,0.00035616,5]
[341135680,1730452247939,-505.57370327,0.00035616,5]
[341135681,1730452247948,-500.0,0.00035616,5]
[341135682,1730452247958,-500.0,0.00035616,5]
[341135683,1730452247967,-500.0,0.00035616,5]
[341135684,1730452247977,-500.0,0.00035616,5]
[341135685,1730452247986,-500.0,0.00035616,5]
[341135686,1730452247995,-508.84434533,0.00035616,5]
[341135687,1730452248005,-181.31490374,0.00035616,5]
[341135688,1730452248014,-169.85015639,0.00035616,5]
[341135689,1730452248024,-500.0,0.00035616,5]
[341135690,1730452248033,-500.0,0.00035616,5]
[341135691,1730452248043,-500.0,0.00035616,5]
[341135692,1730452248053,-200.0,0.00035616,5]
[341135693,1730452248063,-500.0,0.00035616,5]
[341135694,1730452248072,-507.44594096,0.00035616,5]
[341135695,1730452248081,-500.0,0.00035616,5]
[341135696,1730452248092,-508.83889537,0.00035616,5]
[341135697,1730452248101,-510.10322447,0.00035616,5]
[341135698,1730452248110,-500.0,0.00035616,5]
[341135699,1730452248120,-500.0,0.00035616,5]
[341135700,1730452248129,-502.48283022,0.00035616,5]
[341135701,1730452248139,-506.44216283,0.00035616,5]
[341135702,1730452248148,-396.74142642,0.00035616,5]
[341135703,1730452248158,-500.0,0.00035616,5]
[341135704,1730452248167,-511.26563974,0.00035616,5]
[341135705,1730452248177,-500.0,0.00035616,5]
[341135706,1730452248187,-500.0,0.00035616,5]
[341135707,1730452248196,-500.0,0.00035616,5]
[341135708,1730452248205,-501.73729507,0.00035616,5]
[341135709,1730452248215,-512.1042587,0.00035616,5]
[341135710,1730452248225,-500.0,0.00035616,5]
[341135711,1730452248235,-500.0,0.00035616,5]
[341135712,1730452248244,-500.0,0.00035616,2]
[341135713,1730452248253,-517.25868287,0.00035616,5]
[341135714,1730452248263,-503.30402616,0.00035616,5]
[341135715,1730452248272,-500.0,0.00035616,5]
[341135716,1730452248281,-500.0,0.00035616,5]
[341135717,1730452248290,-503.60686691,0.00035616,5]
[341135718,1730452248302,-500.0,0.00035616,5]
[341135719,1730452248313,-500.0,0.00035616,5]
[341135720,1730452248322,-500.0,0.00035616,5]
[341135721,1730452248332,-500.0,0.00035616,5]
[341135722,1730452248346,-500.0,0.00035616,5]
[341135723,1730452248355,-500.0,0.00035616,5]
[341135724,1730452248364,-500.0,0.00035616,5]
[341135725,1730452248373,-500.0,0.00035616,5]
[341135726,1730452248383,-500.0,0.00035616,5]
[341135727,1730452248392,-500.0,0.00035616,5]
[341135728,1730452248401,-571.605106,0.00035616,5]
[341135729,1730452248411,-513.83505788,0.00035616,5]
[341135730,1730452248420,-500.0,0.00035616,5]
[341135731,1730452248429,-338.88306405,0.00035616,5]
[341135732,1730452248438,-558.15659602,0.00035616,5]
[341135733,1730452248450,-500.0,0.00035616,5]
[341135734,1730452248460,-593.5031005,0.00035616,5]
[341135735,1730452248469,-463.36782678,0.00035616,5]
[341135736,1730452248478,-410.02634442,0.00035616,5]
[341135737,1730452248488,-502.9267445,0.00035616,5]
[341135738,1730452248497,-500.0,0.00035616,5]
[341135739,1730452248506,-593.35967635,0.00035616,5]
[341135740,1730452248517,-521.14956884,0.00035616,5]
[341135741,1730452248527,-500.0,0.00035616,5]
[341135742,1730452248536,-507.91867793,0.00035616,5]
[341135743,1730452248546,-503.98696805,0.00035616,5]
[341135744,1730452248556,-500.0,0.00035616,5]
[341135745,1730452248565,-500.0,0.00035616,5]
[341135746,1730452248574,-509.60974456,0.00035616,5]
[341135747,1730452248584,-500.0,0.00035616,5]
[341135748,1730452248594,-548.92696761,0.00035616,5]
[341135749,1730452248603,-500.0,0.00035616,5]
[341135750,1730452248612,-500.0,0.00035616,5]
[341135751,1730452248624,-500.0,0.00035616,5]
[341135752,1730452248634,-507.01009758,0.00035616,5]
[341135753,1730452248644,-500.0,0.00035616,5]
[341135754,1730452248655,-500.0,0.00035616,5]
[341135755,1730452248665,-500.0,0.00035616,5]
[341135756,1730452248675,-504.4781545,0.00035616,5]
[341135757,1730452248685,-587.1090351,0.00035616,5]
[341135758,1730452248695,-500.0,0.00035616,2]
[341135759,1730452248704,-500.0,0.00035616,5]
[341135760,1730452248713,-506.8020733,0.00035616,5]
[341135761,1730452248723,-504.78670592,0.00035616,5]
[341135762,1730452248735,-577.64392067,0.00035616,5]
[341135763,1730452248745,-531.16173908,0.00035616,5]
[341135764,1730452248754,-503.92696776,0.00035616,5]
[341135765,1730452248763,-177.74154196,0.00035616,5]
[341135766,1730452248772,-500.0,0.00035616,5]
[341135767,1730452248781,-500.0,0.00035616,5]
[341135768,1730452248790,-503.86804148,0.00035616,5]
[341135769,1730452248799,-503.93194209,0.00035616,5]
[341135770,1730452248809,-500.0,0.00035616,5]
[341135771,1730452248819,-500.0,0.00035616,5]
[341135772,1730452248828,-500.0,0.00035616,5]
[341135773,1730452248839,-509.67419101,0.00035616,5]
[341135774,1730452248857,-131.24525192,0.00035616,5]
[341135775,1730452248866,-500.0,0.00035616,5]
[341135776,1730452248875,-500.0,0.00035616,5]
[341135777,1730452248886,-500.0,0.00035616,5]
[341135778,1730452248896,-509.60941595,0.00035616,5]
[341135779,1730452248907,-500.0,0.00035616,5]
[341135780,1730452248918,-518.92357372,0.00035616,5]
[341135781,1730452248932,-508.26133418,0.00035616,5]
[341135782,1730452249017,-503.70706815,0.00035616,5]
[341135783,1730452249027,-531.7459557,0.00035616,5]
[341135784,1730452249037,-515.12297013,0.00035616,5]
[341135785,1730452249046,-510.39901436,0.00035616,5]
[341135786,1730452249056,-509.25653229,0.00035616,5]
[341135787,1730452249065,-505.12795517,0.00035616,5]
[341135788,1730452249074,-500.0,0.00035616,5]
[341135789,1730452249084,-501.89184178,0.00035616,5]
[341135790,1730452249093,-507.44703065,0.00035616,5]
[341135791,1730452249102,-506.61028952,0.00035616,5]
[341135792,1730452249112,-509.02988668,0.00035616,5]
[341135793,1730452249121,-510.67115555,0.00035616,5]
[341135794,1730452249130,-506.11759432,0.00035616,5]
[341135795,1730452249139,-242.61048245,0.00035616,5]
[341135796,1730452249149,-503.31841338,0.00035616,5]
[341135797,1730452249158,-506.90745303,0.00035616,5]
[341135798,1730452249168,-298.50442547,0.00035616,5]
[341135799,1730452249178,-506.17698556,0.00035616,5]
[341135800,1730452249187,-506.0,0.00035616,5]
[341135801,1730452249196,-505.2605644,0.00035616,5]
[341135802,1730452249205,-509.4813227,0.00035616,5]
[341135803,1730452249215,-507.20977299,0.00035616,5]
[341135804,1730452249224,-503.38249892,0.00035616,5]
[341135805,1730452249233,-500.0,0.00035616,5]
[341135806,1730452249242,-505.42170947,0.00035616,5]
[341135807,1730452249252,-524.11888661,0.00035616,5]
[341135808,1730452249261,-508.48361999,0.00035616,5]
[341135809,1730452249271,-500.0,0.00035616,5]
[341135810,1730452249280,-507.16642725,0.00035616,5]
[341135811,1730452249291,-504.91186606,0.00035616,5]
[341135812,1730452249300,-506.90173138,0.00035616,5]
[341135813,1730452249310,-508.39511351,0.00035616,5]
[341135814,1730452249321,-500.0,0.00035616,5]
[341135815,1730452249330,-500.0,0.00035616,5]
[341135816,1730452249343,-506.247741,0.00035616,5]
[341135817,1730452249353,-471.53570416,0.00035616,5]
[341135818,1730452249363,-608.27541494,0.00035616,5]
[341135819,1730452249374,-500.0,0.00035616,5]
[341135820,1730452249384,-1000.0,0.00035616,120]
[341135821,1730452249393,-501.99500279,0.00035616,5]
[341135822,1730452249403,-507.12406205,0.00035616,5]
[341135823,1730452249415,-501.90314006,0.00035616,5]
[341135824,1730452249424,-503.59236016,0.00035616,5]
[341135825,1730452249434,-474.26255106,0.00035616,5]
[341135826,1730452249443,-179.2544656,0.00035616,5]
[341135827,1730452249453,-502.18403303,0.00035616,5]
[341135828,1730452249464,-511.85038546,0.00035616,5]
[341135829,1730452249473,-506.93224753,0.00035616,5]
[341135830,1730452249483,-507.90440209,0.00035616,5]
[341135831,1730452249493,-503.76972954,0.00035616,5]
[341135832,1730452249502,-500.0,0.00035616,5]
[341135833,1730452249511,-280.62163529,0.00035616,5]
[341135843,1730452502723,161.342207,0.00013973,2]
[341135917,1730453431768,-508.74579123,0.000212,2]
[341135918,1730453431778,-169.1805,0.00021276,2]
[341135919,1730453431788,-415.5825101,0.00030801,2]
[341135920,1730453431797,-166.666666,0.00030824,2]
[341135921,1730453431806,-175.323041,0.00031105,2]
[341135922,1730453431816,-3000.0,0.00031243,2]
[341135923,1730453431826,-169.1805,0.0003126,2]
[341135924,1730453431835,-300.0,0.0003128,2]
[341135925,1730453431845,-300.0,0.0003128,2]
[341135926,1730453431854,-2828.2942407,0.00031281,2]
[341135927,1730453431863,-2030.774094,0.00031316,2]
[341135928,1730453431873,-501.075362,0.00031353,2]
[341135929,1730453431882,-390.156085,0.00031452,2]
[341135930,1730453431893,-2030.774094,0.00032001,2]
[341135931,1730453431902,-2030.774094,0.00032686,2]
[341135932,1730453431915,-3577.68929551,0.00033873,30]
[341135933,1730453431928,-6422.31070449,0.00033873,30]
[341135934,1730453431937,-166.666666,0.00035026,2]
[341135935,1730453431947,-200.0,0.0003507,33]
[341135936,1730453431956,-158.99,0.00035606,10]
[341135937,1730453431965,-794.98,0.00035606,10]
[341135938,1730453431974,-296.75587947,0.00035615,2]
[341135939,1730453431983,-339.79725295,0.00035615,7]
[341135940,1730453431993,-212.37763582,0.00035615,7]
[341135941,1730453432002,-588.37286885,0.00035615,7]
[341135942,1730453432011,-171.54589105,0.00035615,7]
[341135943,1730453432020,-500.0,0.00035615,7]
[341135944,1730453432030,-500.0,0.00035615,7]
[341135945,1730453432039,-500.0,0.00035615,7]
[341135946,1730453432049,-500.0,0.00035615,7]
[341135947,1730453432058,-500.0,0.00035615,7]
[341135948,1730453432067,-500.0,0.00035615,7]
[341135949,1730453432076,-500.0,0.00035615,7]
[341135950,1730453432085,-500.0,0.00035615,7]
[341135951,1730453432095,-338.612314,0.00035615,7]
[341135952,1730453432113,-500.0,0.00035615,7]
[341135953,1730453432123,-300.0,0.00035615,7]
[341135954,1730453432133,-500.0,0.00035615,7]
[341135955,1730453432142,-211.67850585,0.00035616,14]
[341135956,1730453432152,-500.0,0.00035616,5]
[341135957,1730453432162,-284.31287685,0.00035616,5]
[341136030,1730453442795,-199.19293322,0.00035616,5]
[341136031,1730453442805,-507.75704334,0.00035616,5]
[341136032,1730453442815,-510.00504164,0.00035616,5]
[341136033,1730453442824,-591.57401272,0.00035616,5]
[341136034,1730453442833,-293.57914781,0.00035616,5]
[341136070,1730453445868,-224.05696899,0.00035616,5]
[341136072,1730453445879,-249.91739867,0.00035616,5]
[341136074,1730453445888,-521.51195046,0.00035616,5]
[341136076,1730453445898,-511.82275498,0.00035616,5]
[341136078,1730453445909,-513.24431759,0.00035616,5]
[341136081,1730453445920,-213.29000644,0.00035616,5]
[341136083,1730453445931,-503.11696472,0.00035616,5]
[341136085,1730453445942,-268.44313359,0.00035616,5]
[341136087,1730453445954,-235.3944688,0.00035616,5]
[341136089,1730453445964,-201.72735789,0.00035616,5]
[341136091,1730453445975,-503.76966058,0.00035616,2]
[341136093,1730453445985,-509.80741867,0.00035616,5]
[341136095,1730453445995,-509.03888914,0.00035616,5]
[341136097,1730453446005,-505.76634267,0.00035616,5]
[341136099,1730453446015,-500.0,0.00035616,5]
[341136101,1730453446025,-523.45426837,0.00035616,5]
[341136104,1730453446036,-183.94327187,0.00035616,5]
[341136106,1730453446045,-500.0,0.00035616,5]
[341136107,1730453446055,-512.74277079,0.00035616,5]
[341136108,1730453446064,-69.75862046,0.00035616,5]
[341136203,1730454631971,-250.0000009,0.00032916,2]
[341136205,1730454631982,-195.078042,0.00033089,2]
[341136207,1730454631991,-329.80281711,0.000345,3]
[341136217,1730454632084,-250.0,0.000345,3]
[341136356,1730454643046,-420.19718289,0.000345,3]
[341136357,1730454643056,-2000.0,0.000346,7]
[341136358,1730454643065,-310.0,0.000348,5]
[341136359,1730454643075,-1000.0,0.00035,120]
[341136360,1730454643084,-390.76,0.00035606,3]
[341136361,1730454643093,-500.0,0.00035615,7]
[341136362,1730454643102,-500.0,0.00035615,7]
[341136363,1730454643112,-500.0,0.00035615,7]
[341136364,1730454643121,-500.0,0.00035615,7]
[341136365,1730454643130,-500.0,0.00035615,7]
[341136366,1730454643140,-500.0,0.00035615,7]
[341136367,1730454643149,-500.0,0.00035615,7]
[341136368,1730454643158,-297.0286198,0.00035615,7]
[341136369,1730454643168,-500.0,0.00035615,7]
[341136370,1730454643177,-211.67850585,0.00035616,14]
[341136371,1730454643187,-506.42965363,0.00035616,5]
[341136372,1730454643196,-502.32370115,0.00035616,5]
[341136373,1730454643206,-223.74580835,0.00035616,5]
[341136374,1730454643216,-500.0,0.00035616,2]
[341136375,1730454643226,-500.0,0.00035616,2]
[341136376,1730454643236,-500.0,0.00035616,2]
[341136377,1730454643245,-342.2541196,0.00035616,2]
[341136378,1730454643254,-274.98815034,0.00035616,5]
[341136379,1730454643274,-236.79055648,0.00035616,5]
[341136380,1730454643283,-506.49644023,0.00035616,5]
[341136381,1730454643293,-516.59160654,0.00035616,5]
[341136382,1730454643302,-508.89080841,0.00035616,5]
[341136383,1730454643312,-500.0,0.00035616,5]
[341136384,1730454643321,-510.93147953,0.00035616,5]
[341136385,1730454643331,-508.5509314,0.00035616,5]
[341136386,1730454643340,-505.36116667,0.00035616,5]
[341136387,1730454643351,-508.37785073,0.00035616,5]
[341136388,1730454643360,-500.0,0.00035616,5]
[341136389,1730454643370,-508.07611942,0.00035616,5]
[341136390,1730454643380,-460.38545593,0.00035616,5]
[341136402,1730454646139,-44.50626999,0.00035616,5]
[341136403,1730454646149,-505.70730307,0.00035616,5]
[341136404,1730454646159,-500.0,0.00035616,5]
[341136405,1730454646169,-409.83500213,0.00035616,5]
[341136406,1730454646178,-507.19836782,0.00035616,5]
[341136407,1730454646188,-508.23374503,0.00035616,5]
[341136408,1730454646198,-509.41554413,0.00035616,5]
[341136409,1730454646207,-511.20982127,0.00035616,5]
[341136410,1730454646216,-506.98241935,0.00035616,5]
[341136411,1730454646225,-503.88167079,0.00035616,5]
[341136412,1730454646236,-321.77806549,0.00035616,5]
[341136413,1730454646250,-184.33436758,0.00035616,5]
[341136414,1730454646263,-501.62404659,0.00035616,5]
[341136415,1730454646273,-520.16718024,0.00035616,5]
[341136416,1730454646282,-508.77007165,0.00035616,5]
[341136417,1730454646292,-493.8670218,0.00035616,5]
[341136418,1730454646301,-454.71529988,0.00035616,5]
[341136424,1730454824156,162.127012,0.00013973,2]
[341136427,1730455202723,10276.20667463,0.00033,10]
[341136473,1730455832161,-862.90383567,0.00030119,2]
[341136474,1730455832171,-166.666666,0.00031594,2]
[341136475,1730455832180,-195.078043,0.00032053,2]
[341136476,1730455832194,-300.0,0.00032119,2]
[341136477,1730455832203,-300.0,0.00032119,2]
[341136478,1730455832213,-599.28262965,0.0003212,2]
[341136479,1730455832372,-410.77025274,0.0003212,2]
[341136484,1730455838418,-8055.37938131,0.0003212,2]
[341136485,1730455838427,-250.0,0.0003217,2]
[341136486,1730455838437,-165.4751527,0.00032561,2]
[341136487,1730455838446,-1344.98691601,0.0003388,2]
[341136488,1730455838455,-205.18333494,0.00035516,2]
[341136489,1730455838465,-566.86505662,0.00035615,7]
[341136490,1730455838474,-500.0,0.00035615,7]
[341136491,1730455838484,-500.0,0.00035615,7]
[341136492,1730455838494,-500.0,0.00035615,7]
[341136493,1730455838504,-500.0,0.00035615,7]
[341136494,1730455838513,-500.0,0.00035615,7]
[341136495,1730455838523,-157.92003386,0.00035615,7]
[341136496,1730455838532,-211.67850585,0.00035616,14]
[341136497,1730455838542,-506.64817434,0.00035616,5]
[341136498,1730455838551,-516.50382394,0.00035616,5]
[341136499,1730455838561,-256.96225204,0.00035616,5]
[341136500,1730455838570,-535.59079288,0.00035616,5]
[341136501,1730455838583,-156.76832393,0.00035616,5]
[341136502,1730455838592,-503.83737364,0.00035616,5]
[341136503,1730455838601,-506.6095229,0.00035616,5]
[341136504,1730455838611,-500.0,0.00035616,5]
[341136505,1730455838620,-176.22197392,0.00035616,5]
[341136506,1730455838629,-507.32778939,0.00035616,5]
[341136507,1730455838639,-501.00230403,0.00035616,5]
[341136508,1730455838648,-284.72704998,0.00035616,5]
[341136509,1730455838657,-514.87820035,0.00035616,5]
[341136510,1730455838667,-629.46211331,0.00035616,5]
[341136511,1730455838676,-636.16102454,0.00035616,5]
[341136512,1730455838686,-509.89236851,0.00035616,5]
[341136513,1730455838697,-500.0,0.00035616,5]
[341136514,1730455838706,-39.31301132,0.00035616,5]
[341136515,1730455838771,-460.68698868,0.00035616,5]
[341136516,1730455838781,-507.4015729,0.00035616,5]
[341136517,1730455838790,-515.30521748,0.00035616,5]
[341136518,1730455838800,-509.0030765,0.00035616,5]
[341136519,1730455838809,-511.07301584,0.00035616,5]
[341136520,1730455838819,-509.53830088,0.00035616,5]
[341136521,1730455838829,-508.46423195,0.00035616,5]
[341136522,1730455838838,-509.56452167,0.00035616,5]
[341136523,1730455838848,-500.0,0.00035616,5]
[341136524,1730455838858,-504.89843464,0.00035616,5]
[341136525,1730455838868,-505.1124597,0.00035616,5]
[341136526,1730455838877,-548.24997201,0.00035616,5]
[341136527,1730455838887,-500.0,0.00035616,5]
[341136528,1730455838900,-517.06200474,0.00035616,5]
[341136529,1730455838910,-500.0,0.00035616,5]
[341136530,1730455838922,-509.59500231,0.00035616,5]
[341136531,1730455838932,-500.0,0.00035616,5]
[341136532,1730455838943,-216.65777305,0.00035616,5]
[341136533,1730455839124,-283.34222695,0.00035616,5]
[341136534,1730455839133,-507.61721567,0.00035616,5]
[341136535,1730455839143,-500.0,0.00035616,5]
[341136536,1730455839154,-482.45007497,0.00035616,5]
[341136537,1730455839163,-500.0,0.00035616,5]
[341136538,1730455839172,-500.0,0.00035616,5]
[341136539,1730455839182,-502.17703635,0.00035616,5]
[341136540,1730455839191,-158.01943536,0.00035616,5]
[341136541,1730455839201,-500.0,0.00035616,5]
[341136542,1730455839210,-506.37505722,0.00035616,5]
[341136543,1730455839219,-506.43376472,0.00035616,5]
[341136544,1730455839228,-512.47080336,0.00035616,5]
[341136545,1730455839237,-500.0,0.00035616,5]
[341136546,1730455839246,-518.48730457,0.00035616,5]
[341136547,1730455839255,-508.88495406,0.00035616,5]
[341136548,1730455839265,-509.29596702,0.00035616,5]
[341136549,1730455839274,-500.0,0.00035616,5]
[341136550,1730455839283,-582.10394804,0.00035616,5]
[341136551,1730455839292,-171.66256196,0.00035616,5]
[341136552,1730455839301,-500.0,0.00035616,5]
[341136553,1730455839310,-500.0,0.00035616,5]
[341136554,1730455839319,-513.03700434,0.00035616,5]
[341136555,1730455839329,-500.0,0.00035616,5]
[341136556,1730455839338,-587.0665104,0.00035616,5]
[341136557,1730455839347,-538.15455622,0.00035616,5]
[341136558,1730455839356,-511.8290284,0.00035616,5]
[341136559,1730455839366,-500.0,0.00035616,5]
[341136560,1730455839377,-554.1600042,0.00035616,5]
[341136561,1730455839387,-524.92275547,0.00035616,5]
[341136562,1730455839396,-500.0,0.00035616,5]
[341136563,1730455839405,-536.16527853,0.00035616,5]
[341136564,1730455839415,-513.76526051,0.00035616,5]
[341136565,1730455839427,-503.23088863,0.00035616,5]
[341136566,1730455839436,-507.66462134,0.00035616,5]
[341136567,1730455839446,-504.75681287,0.00035616,5]
[341136568,1730455839457,-508.84657638,0.00035616,5]
[341136569,1730455839466,-500.0,0.00035616,5]
[341136570,1730455839486,-524.59042966,0.00035616,5]
[341136571,1730455839496,-500.0,0.00035616,5]
[341136572,1730455839508,-500.0,0.00035616,5]
[341136573,1730455839518,-513.68558531,0.00035616,2]
[341136574,1730455839530,-500.0,0.00035616,5]
[341136575,1730455839540,-512.23925848,0.00035616,5]
[341136576,1730455839552,-514.39995687,0.00035616,5]
[341136577,1730455839561,-500.0,0.00035616,5]
[341136578,1730455839570,-500.0,0.00035616,5]
[341136579,1730455839580,-500.0,0.00035616,5]
[341136580,1730455839589,-205.5351001,0.00035616,5]
[341136581,1730455839599,-524.55694049,0.00035616,5]
[341136582,1730455839608,-522.04984613,0.00035616,5]
[341136583,1730455839617,-500.0,0.00035616,5]
[341136584,1730455839627,-507.28468924,0.00035616,5]
[341136585,1730455839636,-446.003483,0.00035616,5]
[341136586,1730455839646,-537.14495368,0.00035616,5]
[341136587,1730455839655,-541.66898099,0.00035616,5]
[341136588,1730455839666,-503.81598472,0.00035616,5]
[341136589,1730455839675,-623.26797984,0.00035616,5]
[341136590,1730455839686,-537.71450519,0.00035616,5]
[341136591,1730455839696,-201.50626268,0.00035616,5]
[341136592,1730455839706,-509.96716116,0.00035616,5]
[341136593,1730455839716,-500.0,0.00035616,5]
[341136594,1730455839725,-506.9320964,0.00035616,5]
[341136595,1730455839735,-509.49601674,0.00035616,5]
[341136596,1730455839745,-512.46475607,0.00035616,5]
[341136598,1730455839755,-513.40865992,0.00035616,5]
[341136600,1730455839768,-507.82524389,0.00035616,5]
[341136602,1730455839777,-885.12837136,0.00035616,120]
[341136604,1730455839792,-114.87162864,0.00035616,120]
[341136606,1730455839803,-500.0,0.00035616,3]
[341136608,1730455839813,-62.50016136,0.00035616,5]
[341136630,1730455844251,-437.49983864,0.00035616,5]
[341136631,1730455844261,-505.01705267,0.00035616,5]
[341136632,1730455844270,-53.25810869,0.00035616,5]
[341136637,1730455846277,-446.74189131,0.00035616,5]
[341136638,1730455846287,-500.0,0.00035616,5]
[341136639,1730455846297,-631.898764,0.00035616,5]
[341136640,1730455846308,-500.0,0.00035616,5]
[341136641,1730455846319,-500.0,0.00035616,5]
[341136642,1730455846330,-500.0,0.00035616,5]
[341136643,1730455846340,-500.0,0.00035616,5]
[341136644,1730455846351,-508.47177311,0.00035616,5]
[341136645,1730455846360,-517.87198795,0.00035616,5]
[341136646,1730455846369,-154.69273523,0.00035616,5]
[341136647,1730455846380,-509.90849675,0.00035616,5]
[341136648,1730455846389,-506.1044494,0.00035616,5]
[341136649,1730455846398,-517.79571736,0.00035616,5]
[341136651,1730455846407,-999.0,0.00035616,120]
[341136652,1730455846417,-500.0,0.00035616,5]
[341136653,1730455846426,-594.59,0.00035616,5]
[341136654,1730455846435,-508.56068321,0.00035616,5]
[341136655,1730455846445,-510.37964046,0.00035616,5]
[341136656,1730455846455,-538.87036063,0.00035616,5]
[341136657,1730455846464,-515.43063769,0.00035616,5]
[341136658,1730455846473,-118.41191215,0.00035616,5]
[341136678,1730456764157,-754.76067508,0.00035616,120]
[341136679,1730456764200,-245.23932492,0.00035616,120]
[341136680,1730456764258,-174.9,0.00035753,120]
[341136681,1730456764284,-150.0,0.00035782,120]
[341136682,1730456764312,-675.1,0.0003589,120]
[341136683,1730456764348,-324.9,0.0003589,120]
[341136684,1730456764375,-675.1,0.00035999,120]
[341136685,1730456764415,-323.9,0.00035999,120]
[341136686,1730456764448,-150.0,0.0003603,120]
[341136687,1730456764470,-525.1,0.00036164,120]
[341136688,1730456764507,-474.9,0.00036164,120]
[341136689,1730456764531,-525.1,0.00036438,120]
[341136690,1730456764570,-229.66067508,0.00036438,120]
[341136691,1730456764592,-16852.0,0.000365,120]
[341136692,1730456764616,-150.0,0.00036607,120]
[341136693,1730456764640,-174.9,0.00036712,120]
[341136694,1730456764664,-999.0,0.00036958,120]
[341136695,1730456764688,-2000.0,0.00036986,120]
[341136696,1730456764712,-2000.0,0.00036986,120]
[341136697,1730456764733,-2000.0,0.00036986,120]
[341136698,1730456764756,-2000.0,0.00036986,120]
[341136699,1730456764778,-2000.0,0.00036986,120]
[341136700,1730456764800,-2000.0,0.00036986,120]
[341136701,1730456764822,-728.94453784,0.00037,120]
[341136702,1730456764867,-271.05546216,0.00037,120]
[341136703,1730456764890,-482.24069784,0.0003726,120]
[341136704,1730456764929,-105.79225637,0.0003726,120]
[341136705,1730456764955,-150.0,0.00037496,120]
[341136706,1730456764979,-24.59701363,0.00037671,120]
[341136707,1730456765020,-150.30298637,0.00037671,120]
[341136708,1730456765044,-438.32404,0.000378,120]
[341136709,1730456765068,-314.97212,0.000378,120]
[341136710,1730456765093,-999.0,0.00037917,120]